[Event "Titled Tuesday Blitz April 4 Late 2023"]
[White "Rustemov, Alexander"]
[Black "Matinian, Nikita"]
[WhiteFideId "4119002"]
[BlackFideId "24129100"]
[WhiteElo "2845"]
[BlackElo "2422"]
[Result "0-1"]
[Round "09"]
[TimeControl "180+2"]
[Date "2023.04.04"]
[WhiteClock "0:00:13"]
[BlackClock "0:00:44"]

1. d4 {[%clk 0:03:00]}  d6 {[%clk 0:02:59]} 2. Nf3 {[%clk 0:02:59]}  g6 {[%clk 0:02:59]} 3. c4 {[%clk 0:02:57]}  Bg7 {[%clk 0:02:59]} 4. g3 {[%clk 0:02:57]}  Nf6 {[%clk 0:02:58]} 5. Bg2 {[%clk 0:02:56]}  O-O {[%clk 0:02:59]} 6. Nc3 {[%clk 0:02:56]}  Nc6 {[%clk 0:02:59]} 7. O-O {[%clk 0:02:55]}  a6 {[%clk 0:02:59]} 8. h3 {[%clk 0:02:54]}  Rb8 {[%clk 0:02:57]} 9. e4 {[%clk 0:02:54]}  b5 {[%clk 0:02:57]} 10. d5 {[%clk 0:02:55]}  Na5 {[%clk 0:02:55]} 11. cxb5 {[%clk 0:02:54]}  axb5 {[%clk 0:02:55]} 12. b4 {[%clk 0:02:55]}  Nc4 {[%clk 0:02:55]} 13. Nd4 {[%clk 0:02:55]}  Bd7 {[%clk 0:02:51]} 14. a4 {[%clk 0:02:55]}  bxa4 {[%clk 0:02:49]} 15. b5 {[%clk 0:02:56]}  a3 {[%clk 0:02:36]} 16. Qd3 {[%clk 0:02:53]}  Nb2 {[%clk 0:02:17]} 17. Qc2 {[%clk 0:02:50]}  Nxd5 {[%clk 0:02:05]} 18. Nxd5 {[%clk 0:02:46]}  Bxd4 {[%clk 0:02:05]} 19. Rxa3 {[%clk 0:02:46]}  Bxb5 {[%clk 0:01:59]} 20. Re1 {[%clk 0:02:33]}  Nc4 {[%clk 0:01:57]} 21. Rc3 {[%clk 0:02:17]}  Bxc3 {[%clk 0:01:54]} 22. Qxc3 {[%clk 0:02:18]}  f6 {[%clk 0:01:41]} 23. Bh6 {[%clk 0:02:12]}  Rf7 {[%clk 0:01:41]} 24. f4 {[%clk 0:01:52]}  c6 {[%clk 0:01:41]} 25. Ne3 {[%clk 0:01:48]}  Nxe3 {[%clk 0:01:37]} 26. Rxe3 {[%clk 0:01:49]}  Ra8 {[%clk 0:01:33]} 27. Kh2 {[%clk 0:01:49]}  Ra2 {[%clk 0:01:32]} 28. Qb3 {[%clk 0:01:26]}  Qa8 {[%clk 0:01:25]} 29. e5 {[%clk 0:01:26]}  c5 {[%clk 0:01:15]} 30. Rf3 {[%clk 0:01:19]}  Bc6 {[%clk 0:01:09]} 31. e6 {[%clk 0:01:08]}  Rxg2+ {[%clk 0:01:09]} 32. Kxg2 {[%clk 0:01:07]}  Bxf3+ {[%clk 0:01:09]} 33. Kf2 {[%clk 0:01:05]}  Rf8 {[%clk 0:01:06]} 34. Bxf8 {[%clk 0:01:04]}  Kxf8 {[%clk 0:01:06]} 35. g4 {[%clk 0:00:58]}  Bd5 {[%clk 0:01:04]} 36. Qe3 {[%clk 0:00:45]}  Qa2+ {[%clk 0:01:02]} 37. Ke1 {[%clk 0:00:45]}  Bxe6 {[%clk 0:01:01]} 38. f5 {[%clk 0:00:45]}  Qa1+ {[%clk 0:00:58]} 39. Kf2 {[%clk 0:00:40]}  Bf7 {[%clk 0:00:52]} 40. Qh6+ {[%clk 0:00:39]}  Kg8 {[%clk 0:00:52]} 41. fxg6 {[%clk 0:00:32]}  hxg6 {[%clk 0:00:53]} 42. h4 {[%clk 0:00:29]}  Qd4+ {[%clk 0:00:53]} 43. Kg3 {[%clk 0:00:28]}  Qe5+ {[%clk 0:00:53]} 44. Kf2 {[%clk 0:00:26]}  c4 {[%clk 0:00:48]} 45. Qc1 {[%clk 0:00:19]}  c3 {[%clk 0:00:48]} 46. Qb1 {[%clk 0:00:14]}  Qc5+ {[%clk 0:00:48]} 47. Kg3 {[%clk 0:00:13]}  c2 {[%clk 0:00:48]} 48. Qc1 {[%clk 0:00:13]}  Qc3+ {[%clk 0:00:47]} 49. Kf2 {[%clk 0:00:13]}  Qd4+ {[%clk 0:00:44]} 50. Kg3 {[%clk 0:00:13]}  Qd1 {[%clk 0:00:44]} 0-1


[Site "https://www.chess.com"]

[Event "Titled Tuesday Blitz April 4 Late 2023"]
[White "Yeletsky, Ivan"]
[Black "Kavutskiy, Konstantin"]
[WhiteFideId "24180327"]
[BlackFideId "2026384"]
[WhiteElo "2422"]
[BlackElo "2323"]
[Result "1-0"]
[Round "09"]
[TimeControl "180+2"]
[Date "2023.04.04"]
[WhiteClock "0:01:02"]
[BlackClock "0:00:20"]

1. e4 {[%clk 0:02:55]}  c5 {[%clk 0:02:44]} 2. Nf3 {[%clk 0:02:55]}  Nc6 {[%clk 0:02:43]} 3. d4 {[%clk 0:02:54]}  cxd4 {[%clk 0:02:43]} 4. Nxd4 {[%clk 0:02:55]}  Nf6 {[%clk 0:02:43]} 5. Nc3 {[%clk 0:02:55]}  e5 {[%clk 0:02:43]} 6. Ndb5 {[%clk 0:02:55]}  d6 {[%clk 0:02:43]} 7. Bg5 {[%clk 0:02:55]}  a6 {[%clk 0:02:44]} 8. Na3 {[%clk 0:02:56]}  b5 {[%clk 0:02:44]} 9. Nd5 {[%clk 0:02:56]}  Be7 {[%clk 0:02:44]} 10. Bxf6 {[%clk 0:02:57]}  Bxf6 {[%clk 0:02:45]} 11. c3 {[%clk 0:02:57]}  Rb8 {[%clk 0:02:45]} 12. Nc2 {[%clk 0:02:57]}  Bg5 {[%clk 0:02:42]} 13. a4 {[%clk 0:02:55]}  bxa4 {[%clk 0:02:39]} 14. Ncb4 {[%clk 0:02:55]}  Nxb4 {[%clk 0:02:37]} 15. cxb4 {[%clk 0:02:55]}  O-O {[%clk 0:02:33]} 16. h4 {[%clk 0:02:55]}  Bh6 {[%clk 0:02:28]} 17. Rxa4 {[%clk 0:02:53]}  a5 {[%clk 0:02:26]} 18. b5 {[%clk 0:02:35]}  Bd7 {[%clk 0:02:26]} 19. b3 {[%clk 0:02:16]}  Rc8 {[%clk 0:02:25]} 20. Rc4 {[%clk 0:02:00]}  Kh8 {[%clk 0:02:02]} 21. Rxc8 {[%clk 0:01:53]}  Qxc8 {[%clk 0:02:02]} 22. Bc4 {[%clk 0:01:51]}  a4 {[%clk 0:02:02]} 23. O-O {[%clk 0:01:50]}  a3 {[%clk 0:01:57]} 24. b6 {[%clk 0:01:42]}  Qc5 {[%clk 0:01:54]} 25. Qd3 {[%clk 0:01:34]}  Ra8 {[%clk 0:01:51]} 26. b4 {[%clk 0:01:28]}  Qc6 {[%clk 0:01:40]} 27. Ra1 {[%clk 0:01:25]}  Rc8 {[%clk 0:01:01]} 28. Rxa3 {[%clk 0:01:20]}  g6 {[%clk 0:00:29]} 29. Ne7 {[%clk 0:01:03]}  Qxc4 {[%clk 0:00:23]} 30. Qxc4 {[%clk 0:01:03]}  Rxc4 {[%clk 0:00:24]} 31. b7 {[%clk 0:01:03]}  Rxb4 {[%clk 0:00:23]} 32. Ra8+ {[%clk 0:01:02]}  Kg7 {[%clk 0:00:24]} 33. Rg8+ {[%clk 0:01:01]}  Kf6 {[%clk 0:00:20]} 34. Nd5+ {[%clk 0:01:02]} 1-0


[Site "https://www.chess.com"]

[Event "Titled Tuesday Blitz April 4 Late 2023"]
[White "Urazayev, Arystanbek"]
[Black "TimGrutter03"]
[WhiteFideId "13709810"]
[WhiteElo "2449"]
[BlackElo "2589"]
[Result "1/2-1/2"]
[Round "09"]
[TimeControl "180+2"]
[Date "2023.04.04"]
[WhiteClock "0:00:51"]
[BlackClock "0:00:08"]

1. e4 {[%clk 0:03:00]}  g6 {[%clk 0:03:00]} 2. d4 {[%clk 0:03:01]}  Bg7 {[%clk 0:03:01]} 3. Nf3 {[%clk 0:03:01]}  d6 {[%clk 0:03:01]} 4. c3 {[%clk 0:03:02]}  Nf6 {[%clk 0:02:59]} 5. Nbd2 {[%clk 0:03:02]}  O-O {[%clk 0:02:59]} 6. Bd3 {[%clk 0:03:03]}  e5 {[%clk 0:02:59]} 7. O-O {[%clk 0:03:00]}  Nc6 {[%clk 0:02:57]} 8. dxe5 {[%clk 0:03:01]}  Nxe5 {[%clk 0:02:54]} 9. Nxe5 {[%clk 0:03:01]}  dxe5 {[%clk 0:02:55]} 10. Nc4 {[%clk 0:03:02]}  Qe7 {[%clk 0:02:43]} 11. a4 {[%clk 0:03:02]}  Rd8 {[%clk 0:02:41]} 12. Qe2 {[%clk 0:03:02]}  a5 {[%clk 0:02:37]} 13. b3 {[%clk 0:03:02]}  b6 {[%clk 0:02:33]} 14. Rd1 {[%clk 0:03:02]}  Bb7 {[%clk 0:02:29]} 15. Ba3 {[%clk 0:02:57]}  Qe6 {[%clk 0:02:25]} 16. f3 {[%clk 0:02:55]}  Bf8 {[%clk 0:02:16]} 17. Bxf8 {[%clk 0:02:53]}  Kxf8 {[%clk 0:02:17]} 18. Qe3 {[%clk 0:02:46]}  Nd7 {[%clk 0:02:04]} 19. Na3 {[%clk 0:02:44]}  Nc5 {[%clk 0:01:31]} 20. Bc4 {[%clk 0:02:43]}  Qe7 {[%clk 0:01:30]} 21. Nc2 {[%clk 0:02:31]}  Rxd1+ {[%clk 0:01:27]} 22. Rxd1 {[%clk 0:02:32]}  Rd8 {[%clk 0:01:27]} 23. Qh6+ {[%clk 0:02:26]}  Kg8 {[%clk 0:01:26]} 24. Rd2 {[%clk 0:01:57]}  Rxd2 {[%clk 0:01:06]} 25. Qxd2 {[%clk 0:01:57]}  Qd7 {[%clk 0:00:49]} 26. Qxd7 {[%clk 0:01:56]}  Nxd7 {[%clk 0:00:50]} 27. b4 {[%clk 0:01:56]}  Kf8 {[%clk 0:00:46]} 28. Kf2 {[%clk 0:01:56]}  Bc6 {[%clk 0:00:43]} 29. Bb3 {[%clk 0:01:56]}  Ke7 {[%clk 0:00:41]} 30. Ke2 {[%clk 0:01:52]}  Nf8 {[%clk 0:00:31]} 31. Ne3 {[%clk 0:01:48]}  Ne6 {[%clk 0:00:25]} 32. bxa5 {[%clk 0:01:20]}  bxa5 {[%clk 0:00:21]} 33. Nc4 {[%clk 0:01:11]}  Nc5 {[%clk 0:00:16]} 34. Nxe5 {[%clk 0:01:05]}  Bxa4 {[%clk 0:00:16]} 35. Bxa4 {[%clk 0:00:57]}  Nxa4 {[%clk 0:00:17]} 36. Kd3 {[%clk 0:00:54]}  Nb6 {[%clk 0:00:14]} 37. Nc6+ {[%clk 0:00:54]}  Kd6 {[%clk 0:00:13]} 38. Nxa5 {[%clk 0:00:55]}  Nd7 {[%clk 0:00:10]} 39. Nb7+ {[%clk 0:00:55]}  Ke6 {[%clk 0:00:03]} 40. Kd4 {[%clk 0:00:54]}  f5 {[%clk 0:00:02]} 41. Nc5+ {[%clk 0:00:55]}  Nxc5 {[%clk 0:00:02]} 42. Kxc5 {[%clk 0:00:53]}  fxe4 {[%clk 0:00:03]} 43. fxe4 {[%clk 0:00:54]}  Ke5 {[%clk 0:00:04]} 44. Kc6 {[%clk 0:00:51]}  Kxe4 {[%clk 0:00:04]} 45. Kxc7 {[%clk 0:00:52]}  Kd3 {[%clk 0:00:04]} 46. Kd6 {[%clk 0:00:53]}  Kxc3 {[%clk 0:00:05]} 47. Ke5 {[%clk 0:00:53]}  Kd3 {[%clk 0:00:06]} 48. Kf6 {[%clk 0:00:54]}  Ke3 {[%clk 0:00:06]} 49. Kg7 {[%clk 0:00:55]}  Kf2 {[%clk 0:00:07]} 50. Kxh7 {[%clk 0:00:55]}  Kxg2 {[%clk 0:00:07]} 51. h4 {[%clk 0:00:51]}  Kh3 {[%clk 0:00:07]} 52. Kxg6 {[%clk 0:00:51]}  Kxh4 {[%clk 0:00:08]} 1/2-1/2


[Site "https://www.chess.com"]

[Event "Titled Tuesday Blitz April 4 Late 2023"]
[White "Fiorito, Francisco"]
[Black "Leitao, Rafael"]
[WhiteFideId "180165"]
[BlackFideId "2101246"]
[WhiteElo "2341"]
[BlackElo "2609"]
[Result "1/2-1/2"]
[Round "09"]
[TimeControl "180+2"]
[Date "2023.04.04"]
[WhiteClock "0:00:18"]
[BlackClock "0:00:28"]

1. d4 {[%clk 0:03:00]}  Nf6 {[%clk 0:02:59]} 2. Bf4 {[%clk 0:03:00]}  g6 {[%clk 0:02:59]} 3. e3 {[%clk 0:03:00]}  Bg7 {[%clk 0:02:59]} 4. Nf3 {[%clk 0:03:00]}  d6 {[%clk 0:02:59]} 5. h3 {[%clk 0:03:01]}  O-O {[%clk 0:02:59]} 6. Be2 {[%clk 0:03:01]}  b6 {[%clk 0:02:59]} 7. O-O {[%clk 0:03:01]}  Bb7 {[%clk 0:02:59]} 8. a4 {[%clk 0:03:00]}  a6 {[%clk 0:03:00]} 9. c3 {[%clk 0:02:56]}  Nbd7 {[%clk 0:02:58]} 10. Nbd2 {[%clk 0:02:56]}  Ne4 {[%clk 0:02:57]} 11. Bh2 {[%clk 0:02:47]}  Ndf6 {[%clk 0:02:37]} 12. Nxe4 {[%clk 0:02:42]}  Nxe4 {[%clk 0:02:36]} 13. Qc2 {[%clk 0:02:40]}  c5 {[%clk 0:02:29]} 14. Rfd1 {[%clk 0:02:38]}  Qc7 {[%clk 0:02:13]} 15. Qb3 {[%clk 0:02:37]}  Rac8 {[%clk 0:01:46]} 16. Rac1 {[%clk 0:02:37]}  c4 {[%clk 0:01:41]} 17. Qc2 {[%clk 0:02:32]}  Nf6 {[%clk 0:01:38]} 18. Nd2 {[%clk 0:02:28]}  b5 {[%clk 0:01:37]} 19. axb5 {[%clk 0:02:25]}  axb5 {[%clk 0:01:38]} 20. b3 {[%clk 0:02:20]}  Ba6 {[%clk 0:01:26]} 21. Ra1 {[%clk 0:02:19]}  Ra8 {[%clk 0:01:21]} 22. e4 {[%clk 0:02:03]}  e5 {[%clk 0:01:19]} 23. dxe5 {[%clk 0:01:54]}  dxe5 {[%clk 0:01:20]} 24. Ra2 {[%clk 0:01:42]}  Bb7 {[%clk 0:01:20]} 25. Rxa8 {[%clk 0:01:39]}  Rxa8 {[%clk 0:01:20]} 26. bxc4 {[%clk 0:01:40]}  bxc4 {[%clk 0:01:20]} 27. Nxc4 {[%clk 0:01:38]}  Nxe4 {[%clk 0:01:17]} 28. Rb1 {[%clk 0:01:29]}  Qc5 {[%clk 0:01:05]} 29. Bd3 {[%clk 0:01:23]}  Qc6 {[%clk 0:00:53]} 30. Bxe4 {[%clk 0:01:00]}  Qxe4 {[%clk 0:00:52]} 31. Qxe4 {[%clk 0:01:01]}  Bxe4 {[%clk 0:00:52]} 32. Re1 {[%clk 0:01:01]}  f6 {[%clk 0:00:35]} 33. Bxe5 {[%clk 0:00:59]}  Bxg2 {[%clk 0:00:31]} 34. Kxg2 {[%clk 0:00:51]}  fxe5 {[%clk 0:00:31]} 35. Nxe5 {[%clk 0:00:51]}  Rc8 {[%clk 0:00:30]} 36. Nf3 {[%clk 0:00:30]}  Bxc3 {[%clk 0:00:29]} 37. Rc1 {[%clk 0:00:29]}  Rc7 {[%clk 0:00:28]} 38. Rc2 {[%clk 0:00:29]}  Be5 {[%clk 0:00:27]} 39. Re2 {[%clk 0:00:27]}  Bf6 {[%clk 0:00:26]} 40. Re6 {[%clk 0:00:27]}  Kf7 {[%clk 0:00:26]} 41. Ra6 {[%clk 0:00:28]}  Re7 {[%clk 0:00:26]} 42. Ra2 {[%clk 0:00:27]}  Rc7 {[%clk 0:00:26]} 43. Rd2 {[%clk 0:00:27]}  Re7 {[%clk 0:00:26]} 44. Rc2 {[%clk 0:00:26]}  Rd7 {[%clk 0:00:26]} 45. Nd2 {[%clk 0:00:24]}  Kg7 {[%clk 0:00:25]} 46. Ne4 {[%clk 0:00:23]}  Re7 {[%clk 0:00:25]} 47. Kf3 {[%clk 0:00:23]}  Bd4 {[%clk 0:00:26]} 48. Rd2 {[%clk 0:00:21]}  Be5 {[%clk 0:00:25]} 49. Rd5 {[%clk 0:00:19]}  Bf6 {[%clk 0:00:25]} 50. Rd2 {[%clk 0:00:19]}  Be5 {[%clk 0:00:25]} 51. Ra2 {[%clk 0:00:19]}  Bf6 {[%clk 0:00:26]} 52. Ng3 {[%clk 0:00:17]}  Be5 {[%clk 0:00:25]} 53. Kg2 {[%clk 0:00:17]}  Bxg3 {[%clk 0:00:25]} 54. Kxg3 {[%clk 0:00:18]}  Rf7 {[%clk 0:00:26]} 55. Ra3 {[%clk 0:00:18]}  Rf5 {[%clk 0:00:26]} 56. Ra4 {[%clk 0:00:18]}  Rf7 {[%clk 0:00:26]} 57. Ra5 {[%clk 0:00:18]}  Re7 {[%clk 0:00:26]} 58. f3 {[%clk 0:00:19]}  Rf7 {[%clk 0:00:27]} 59. h4 {[%clk 0:00:19]}  Re7 {[%clk 0:00:27]} 60. Rc5 {[%clk 0:00:19]}  Rf7 {[%clk 0:00:27]} 61. Re5 {[%clk 0:00:19]}  Kf6 {[%clk 0:00:27]} 62. Re4 {[%clk 0:00:18]}  Kg7 {[%clk 0:00:27]} 63. Rd4 {[%clk 0:00:18]}  h6 {[%clk 0:00:26]} 64. Rd5 {[%clk 0:00:18]}  Re7 {[%clk 0:00:26]} 65. Ra5 {[%clk 0:00:18]}  Rf7 {[%clk 0:00:26]} 66. Ra4 {[%clk 0:00:18]}  Re7 {[%clk 0:00:27]} 67. Rd4 {[%clk 0:00:18]}  Rf7 {[%clk 0:00:27]} 68. Re4 {[%clk 0:00:18]}  Rd7 {[%clk 0:00:27]} 69. Rf4 {[%clk 0:00:18]}  Re7 {[%clk 0:00:28]} 70. Rd4 {[%clk 0:00:18]}  Rf7 {[%clk 0:00:28]} 1/2-1/2


[Site "https://www.chess.com"]

[Event "Titled Tuesday Blitz April 4 Late 2023"]
[White "Becerra, Juan David"]
[Black "Jaracz, Pawel"]
[WhiteFideId "4404998"]
[BlackFideId "1102222"]
[WhiteElo "2276"]
[BlackElo "2438"]
[Result "0-1"]
[Round "09"]
[TimeControl "180+2"]
[Date "2023.04.04"]
[WhiteClock "0:00:15"]
[BlackClock "0:01:16"]

1. e4 {[%clk 0:02:58]}  e5 {[%clk 0:03:00]} 2. Nf3 {[%clk 0:02:56]}  Nc6 {[%clk 0:03:00]} 3. Bb5 {[%clk 0:02:56]}  a6 {[%clk 0:03:00]} 4. Ba4 {[%clk 0:02:55]}  Nf6 {[%clk 0:03:01]} 5. d3 {[%clk 0:02:56]}  d6 {[%clk 0:02:59]} 6. c3 {[%clk 0:02:35]}  g6 {[%clk 0:02:58]} 7. O-O {[%clk 0:02:33]}  Bg7 {[%clk 0:02:59]} 8. Re1 {[%clk 0:02:24]}  O-O {[%clk 0:02:58]} 9. Nbd2 {[%clk 0:02:23]}  Nh5 {[%clk 0:02:58]} 10. Bxc6 {[%clk 0:02:19]}  bxc6 {[%clk 0:02:58]} 11. Nc4 {[%clk 0:02:13]}  h6 {[%clk 0:02:55]} 12. d4 {[%clk 0:02:06]}  exd4 {[%clk 0:02:52]} 13. Nxd4 {[%clk 0:02:05]}  Bd7 {[%clk 0:02:48]} 14. Na5 {[%clk 0:01:54]}  c5 {[%clk 0:02:47]} 15. Ndb3 {[%clk 0:01:44]}  Re8 {[%clk 0:02:45]} 16. Bd2 {[%clk 0:01:31]}  Qh4 {[%clk 0:02:43]} 17. f3 {[%clk 0:01:21]}  Be5 {[%clk 0:02:28]} 18. f4 {[%clk 0:01:08]}  Nxf4 {[%clk 0:02:25]} 19. Nc4 {[%clk 0:00:58]}  Bg4 {[%clk 0:02:10]} 20. Qc2 {[%clk 0:00:58]}  Ne2+ {[%clk 0:02:08]} 21. Rxe2 {[%clk 0:00:35]}  Qxh2+ {[%clk 0:02:08]} 22. Kf2 {[%clk 0:00:34]}  Bg3+ {[%clk 0:02:00]} 23. Ke3 {[%clk 0:00:34]}  Bf4+ {[%clk 0:01:53]} 24. Kf2 {[%clk 0:00:20]}  Bxe2 {[%clk 0:01:30]} 25. Bxf4 {[%clk 0:00:19]}  Qxf4+ {[%clk 0:01:27]} 26. Kxe2 {[%clk 0:00:19]}  Rxe4+ {[%clk 0:01:27]} 27. Kd3 {[%clk 0:00:15]}  Qf5 {[%clk 0:01:16]} 0-1


[Site "https://www.chess.com"]

[Event "Titled Tuesday Blitz April 4 Late 2023"]
[White "Annaberdiyev, Meylis"]
[Black "Aggelis, Nikolaos"]
[WhiteFideId "14000563"]
[BlackFideId "4213220"]
[WhiteElo "2416"]
[BlackElo "2189"]
[Result "1-0"]
[Round "09"]
[TimeControl "180+2"]
[Date "2023.04.04"]
[WhiteClock "0:00:07"]
[BlackClock "0:00:05"]

1. e4 {[%clk 0:03:00]}  c5 {[%clk 0:03:00]} 2. Nc3 {[%clk 0:03:00]}  g6 {[%clk 0:02:59]} 3. f4 {[%clk 0:03:00]}  Bg7 {[%clk 0:02:56]} 4. Nf3 {[%clk 0:03:00]}  Nc6 {[%clk 0:02:56]} 5. Bb5 {[%clk 0:03:00]}  Nd4 {[%clk 0:02:54]} 6. O-O {[%clk 0:02:58]}  a6 {[%clk 0:02:40]} 7. Bc4 {[%clk 0:02:57]}  b5 {[%clk 0:02:39]} 8. Bd5 {[%clk 0:02:43]}  Rb8 {[%clk 0:02:37]} 9. e5 {[%clk 0:02:44]}  e6 {[%clk 0:02:25]} 10. Ne4 {[%clk 0:02:36]}  exd5 {[%clk 0:02:15]} 11. Nd6+ {[%clk 0:02:36]}  Kf8 {[%clk 0:02:15]} 12. f5 {[%clk 0:02:25]}  Nxf5 {[%clk 0:02:05]} 13. d4 {[%clk 0:02:10]}  Nxd6 {[%clk 0:02:00]} 14. exd6 {[%clk 0:02:11]}  cxd4 {[%clk 0:01:50]} 15. Ng5 {[%clk 0:01:52]}  Nf6 {[%clk 0:01:44]} 16. Qxd4 {[%clk 0:00:32]}  Qb6 {[%clk 0:01:40]} 17. Be3 {[%clk 0:00:27]}  Qxd4 {[%clk 0:01:30]} 18. Bxd4 {[%clk 0:00:28]}  h6 {[%clk 0:01:27]} 19. Nf3 {[%clk 0:00:14]}  Ne4 {[%clk 0:01:12]} 20. Ne5 {[%clk 0:00:13]}  Bxe5 {[%clk 0:00:44]} 21. Bxe5 {[%clk 0:00:14]}  Rh7 {[%clk 0:00:44]} 22. a4 {[%clk 0:00:15]}  f6 {[%clk 0:00:41]} 23. axb5 {[%clk 0:00:14]}  Rxb5 {[%clk 0:00:36]} 24. Rac1 {[%clk 0:00:09]}  Rf7 {[%clk 0:00:36]} 25. Bd4 {[%clk 0:00:08]}  f5 {[%clk 0:00:30]} 26. c4 {[%clk 0:00:08]}  dxc4 {[%clk 0:00:23]} 27. Rxc4 {[%clk 0:00:09]}  Bb7 {[%clk 0:00:18]} 28. Rfc1 {[%clk 0:00:09]}  Bc6 {[%clk 0:00:18]} 29. Be3 {[%clk 0:00:07]}  Nxd6 {[%clk 0:00:19]} 30. Bc5 {[%clk 0:00:06]}  Ke7 {[%clk 0:00:17]} 31. Re1+ {[%clk 0:00:05]}  Be4 {[%clk 0:00:18]} 32. Rd1 {[%clk 0:00:04]}  Rf6 {[%clk 0:00:18]} 33. b4 {[%clk 0:00:02]}  Re6 {[%clk 0:00:18]} 34. Rcd4 {[%clk 0:00:02]}  Rxc5 {[%clk 0:00:14]} 35. bxc5 {[%clk 0:00:03]}  Nb5 {[%clk 0:00:14]} 36. Rxd7+ {[%clk 0:00:04]}  Kf6 {[%clk 0:00:15]} 37. Ra7 {[%clk 0:00:03]}  Rc6 {[%clk 0:00:15]} 38. Rh7 {[%clk 0:00:01]}  h5 {[%clk 0:00:14]} 39. h4 {[%clk 0:00:01]}  Rxc5 {[%clk 0:00:13]} 40. Ra1 {[%clk 0:00:02]}  Rc6 {[%clk 0:00:14]} 41. Ra5 {[%clk 0:00:01]}  Rd6 {[%clk 0:00:12]} 42. Kh2 {[%clk 0:00:01]}  Nd4 {[%clk 0:00:12]} 43. Ra7 {[%clk 0:00:01]}  Ne2 {[%clk 0:00:12]} 44. R5xa6 {[%clk 0:00:01]}  Rxa6 {[%clk 0:00:12]} 45. Rxa6+ {[%clk 0:00:02]}  Kg7 {[%clk 0:00:13]} 46. Ra7+ {[%clk 0:00:03]}  Kh6 {[%clk 0:00:13]} 47. Ra6 {[%clk 0:00:03]}  Nf4 {[%clk 0:00:13]} 48. g3 {[%clk 0:00:04]}  Nd3 {[%clk 0:00:12]} 49. Ra3 {[%clk 0:00:05]}  Ne5 {[%clk 0:00:12]} 50. Kg1 {[%clk 0:00:05]}  Nf3+ {[%clk 0:00:11]} 51. Kf2 {[%clk 0:00:05]}  Ne5 {[%clk 0:00:11]} 52. Ke3 {[%clk 0:00:06]}  Ng4+ {[%clk 0:00:12]} 53. Kf4 {[%clk 0:00:06]}  Nf2 {[%clk 0:00:11]} 54. Ra7 {[%clk 0:00:06]}  Nd3+ {[%clk 0:00:11]} 55. Ke3 {[%clk 0:00:06]}  Ne5 {[%clk 0:00:10]} 56. Kf4 {[%clk 0:00:07]}  Nc4 {[%clk 0:00:09]} 57. Rc7 {[%clk 0:00:06]}  Nd2 {[%clk 0:00:08]} 58. Ke5 {[%clk 0:00:06]}  Nf3+ {[%clk 0:00:08]} 59. Kf6 {[%clk 0:00:06]}  f4 {[%clk 0:00:06]} 60. Rc8 {[%clk 0:00:07]}  fxg3 {[%clk 0:00:05]} 61. Rh8# {[%clk 0:00:07]} 1-0


[Site "https://www.chess.com"]

[Event "Titled Tuesday Blitz April 4 Late 2023"]
[White "Makaraci, Tunahan"]
[Black "Papp, Levente"]
[WhiteFideId "6356559"]
[BlackFideId "751243"]
[WhiteElo "2160"]
[BlackElo "2380"]
[Result "0-1"]
[Round "09"]
[TimeControl "180+2"]
[Date "2023.04.04"]
[WhiteClock "0:00:15"]
[BlackClock "0:00:40"]

1. e4 {[%clk 0:03:00]}  e6 {[%clk 0:02:57]} 2. d4 {[%clk 0:03:00]}  d5 {[%clk 0:02:54]} 3. Nc3 {[%clk 0:03:01]}  Bb4 {[%clk 0:02:54]} 4. Ne2 {[%clk 0:03:01]}  Ne7 {[%clk 0:02:52]} 5. a3 {[%clk 0:02:59]}  Ba5 {[%clk 0:02:52]} 6. exd5 {[%clk 0:02:53]}  exd5 {[%clk 0:02:51]} 7. g3 {[%clk 0:02:49]}  c6 {[%clk 0:02:49]} 8. Bg2 {[%clk 0:02:49]}  O-O {[%clk 0:02:49]} 9. O-O {[%clk 0:02:50]}  Bf5 {[%clk 0:02:40]} 10. b4 {[%clk 0:02:50]}  Bc7 {[%clk 0:02:40]} 11. Bf4 {[%clk 0:02:50]}  Nd7 {[%clk 0:02:39]} 12. Bxc7 {[%clk 0:02:45]}  Qxc7 {[%clk 0:02:40]} 13. Nf4 {[%clk 0:02:46]}  Nb6 {[%clk 0:02:38]} 14. Re1 {[%clk 0:02:41]}  Rfe8 {[%clk 0:02:37]} 15. Nd3 {[%clk 0:02:19]}  Ng6 {[%clk 0:02:29]} 16. Qh5 {[%clk 0:02:08]}  Bxd3 {[%clk 0:02:08]} 17. cxd3 {[%clk 0:02:09]}  Re7 {[%clk 0:02:09]} 18. Qg4 {[%clk 0:01:31]}  Rae8 {[%clk 0:02:08]} 19. Rxe7 {[%clk 0:01:30]}  Qxe7 {[%clk 0:01:58]} 20. h4 {[%clk 0:01:30]}  Qf6 {[%clk 0:01:51]} 21. h5 {[%clk 0:01:30]}  Nf8 {[%clk 0:01:51]} 22. a4 {[%clk 0:01:22]}  Nc8 {[%clk 0:01:12]} 23. a5 {[%clk 0:01:08]}  Ne6 {[%clk 0:01:08]} 24. Re1 {[%clk 0:01:08]}  Nd6 {[%clk 0:01:08]} 25. Nxd5 {[%clk 0:00:43]}  cxd5 {[%clk 0:01:06]} 26. Bxd5 {[%clk 0:00:44]}  Nxd4 {[%clk 0:00:57]} 27. Rxe8+ {[%clk 0:00:37]}  Nxe8 {[%clk 0:00:58]} 28. Qc8 {[%clk 0:00:31]}  Qe7 {[%clk 0:00:47]} 29. Bxb7 {[%clk 0:00:27]}  Kf8 {[%clk 0:00:45]} 30. Qc5 {[%clk 0:00:20]}  Qxc5 {[%clk 0:00:43]} 31. bxc5 {[%clk 0:00:20]}  Nb3 {[%clk 0:00:42]} 32. c6 {[%clk 0:00:15]}  Nxa5 {[%clk 0:00:42]} 33. d4 {[%clk 0:00:15]}  Ke7 {[%clk 0:00:40]} 0-1


[Site "https://www.chess.com"]